Cogmind - Beta 15 @@@ ROGUE MODE // 2025.08.29 @ 14:49:33 Player: seita Result: Destroyed by ED-3LG(R) with Subdweller Laser Performance ------------- Evolutions (0) 0 Regions Visited (2) 400 Robots Destroyed (24) 120 Value Destroyed (636) 636 Prototype IDs (7) 140 Alien Tech Used (0) 0 Bonus (0) 0 TOTAL SCORE: 1296 Bonus ------- None Cogmind --------- Core Integrity 0/250 Matter 200/300 Energy 200/200 System Corruption 1% Temperature Cool (6) Movement Rolling (130) Ox2 Location -10/Subcaves Parts ------- > --- POWER (1) -------- Subdweller Power Source > --- PROPULSION (2) --- Light Treads Subdweller Monowheel > --- UTILITY (2) ------ High-capacity Storage Unit Seismic Detector > --- WEAPON (2) ------- Subdweller Laser Subdweller Shrapnel Launcher > --- INVENTORY (20) --- Light Ion Engine Subdweller Power Source Subdweller Monowheel Subdweller Monowheel Subdweller Monowheel High-capacity Matter Pod (200) Subdweller Optics Makeshift Light Armor Plating Subdweller Laser Assault Rifle Assault Rifle Assault Rifle Assault Rifle Light Assault Rifle Light Assault Rifle Light Assault Rifle Subdweller Machine Gun Barrage Gun Mining Laser Shrapnel Trap Peak State ------------ > --- POWER ------------ Light Nuclear Core > --- PROPULSION ------- Subdweller Monowheel Subdweller Monowheel > --- UTILITY ---------- High-capacity Storage Unit Seismic Detector > --- WEAPON ----------- Subdweller Beam Cannon Subdweller Machine Gun > --- INVENTORY -------- Light Ion Engine Light Treads Light Treads Subdweller Monowheel High-capacity Matter Pod Subdweller Optics Light Armor Plating Subdweller Beam Cannon Assault Rifle Assault Rifle Assault Rifle Assault Rifle Assault Rifle Light Assault Rifle Light Assault Rifle Light Assault Rifle Light Assault Rifle Subdweller Shrapnel Launcher Mining Laser Piercing Trap [Rating: 15] Favorites ----------- Power Light Nuclear Core Engine Light Ion Engine Power Core Light Nuclear Core Propulsion Light Treads Treads Light Treads Wheel Subdweller Monowheel Utility High-capacity Storage Unit Device Seismic Detector Storage High-capacity Storage Unit Protection Light Armor Plating Weapon Assault Rifle Energy Gun Subdweller Laser Energy Cannon Subdweller Beam Cannon Ballistic Gun Assault Rifle Launcher Subdweller Shrapnel Launcher Special Weapon Mining Laser Build | -11 -10 -10 ------- Run | Yrd Mat Sub Slots Evolved . | . . . Power . | . . . Propulsion . | . . . Utility . | . . . Weapon . | . . . Parts Attached 38 | 8 4 26 Power 3 | 1 1 1 Engine 2 | 1 . 1 Core 1 | . 1 . Reactor . | . . . Propulsion 13 | 2 1 10 Treads 3 | 2 . 1 Leg . | . . . Wheel 10 | . 1 9 Hover . | . . . Flight . | . . . Utility 6 | 2 1 3 Device 2 | 1 . 1 Storage 3 | 1 1 1 Processor . | . . . Hackware . | . . . Protection 1 | . . 1 Artifact . | . . . Weapon 16 | 3 1 12 Energy Gun 4 | 2 . 2 Energy Cannon 2 | . . 2 Ballistic Gun 8 | 1 1 6 Ballistic Cannon . | . . . Launcher 1 | . . 1 Special Weapon 1 | . . 1 Impact Weapon . | . . . Slashing Weapon . | . . . Piercing Weapon . | . . . Special Melee Weapon . | . . . Unidentified Prototypes . | . . . Parts Lost 7 | . . 7 Power 1 | . . 1 Propulsion 3 | . . 3 Utility 1 | . . 1 Weapon 2 | . . 2 Highest Loss Streak 2 | . . 2 To Critical Strikes . | . . . Average Backups 16 | 5 13 19 Power . | . 1 . Propulsion 3 | 3 3 3 Utility 2 | . 2 2 Weapon 9 | . 5 12 Tool/Special . | . . . Unused Backups 27 | 1 9 17 Power 2 | . 1 1 Propulsion 7 | . 3 4 Utility 8 | 1 3 4 Weapon 10 | . 2 8 Tool/Special . | . . . Average Slot Usage (%) 99 | . 100 99 Engine 6 | . 2 8 Core 7 | . 11 5 Treads 12 | . 18 9 Wheel 15 | . 9 18 Device 12 | . 14 11 Storage 14 | . 14 14 Protection 1 | . . 2 Energy Gun 8 | . 8 7 Energy Cannon 3 | . . 4 Ballistic Gun 16 | . 19 15 Peak Build Rating 15 | 7 11 15 Average Rating 11 | 5 9 12 On Entrance 6 | . 7 11 Naked Turns . | . . . Heaviest Build 60 | 13 50 60 Greatest Support 40 | 40 40 40 Greatest Overweight (x) 4 | . 4 2 Average Overweight (x) 1 | . 2 1 Largest Inventory Capacity 20 | 8 20 20 Average Capacity 18 | 7 16 20 Most Carried 20 | 8 20 20 Average Carried 17 | 5 13 19 Final Capacity 20 | 8 20 20 Final Carried 20 | 8 20 20 Class Distribution -------------------- 82% | Mutant 17% | Scavenger-Mutant Dominant Class ---------------- Mutant | -10/Materials Mutant | -10/Subcaves Resources | -11 -10 -10 ----------- Run | Yrd Mat Sub Matter Collected 1198 | 313 318 567 Remotely . | . . . Salvage Created 810 | 167 202 441 Parts 56 | 15 12 29 Haulers Intercepted 1 | . 1 . Recyclers Shooed . | . . . Parts Field Recycled . | . . . Retrieved Matter . | . . . Parts Self-Destructed 23 | . . 23 Prevented . | . . . Kills | -11 -10 -10 ------- Run | Yrd Mat Sub Combat Hostiles Destroyed 15 | . 3 12 Guns 10 | . 3 7 Cannons 5 | . . 5 Classes Destroyed 9 | 2 5 2 Worker 1 | . 1 . Tunneler 5 | 5 . . Hauler 1 | . 1 . Recycler 1 | 1 . . Operator 1 | . 1 . Swarmer 3 | . 1 2 Grunt 2 | . 2 . Sentry 1 | . . 1 Subdweller 9 | . . 9 Best Kill Streak 3 | 3 3 2 Combat Bots Only 2 | . 2 2 Max Kills in Single Turn 1 | 1 1 1 Gunslinging . | . . . Exploded . | . . . Melee . | . . . Uniques/NPCs Destroyed . | . . . Combat | -11 -10 -10 -------- Run | Yrd Mat Sub Hostile Shots Fired 115 | . 7 108 Missed 39 | . 2 37 Hits 76 | . 5 71 Projectile 76 | . 5 71 AOE 4 | . . 4 Critical Strikes 1 | . . 1 Damage Taken 1538 | . 114 1424 Core 260 | . 38 222 Absorbed by Shields . | . . . Core Remaining (%) 100 | 100 . . Volleys Fired 87 | 11 7 69 Largest 2 | 2 2 2 Hottest 110 | 60 60 110 Shots Fired 168 | 22 14 132 Gun 143 | 22 14 107 Cannon 20 | . . 20 Launcher 4 | . . 4 Special 1 | . . 1 Kinetic 88 | 11 7 70 Thermal 62 | . . 62 Explosive . | . . . Electromagnetic 18 | 11 7 . Robot Hit Streak 18 | 7 11 18 Robot Miss Streak 6 | 2 . 6 Penetration Max . | . . . Secondary Targets 1 | . . 1 Max Gunslinging Chain 1 | . . 1 Shots Hit Robots 84 | 13 10 61 Core Hits 34 | 6 8 20 Critical Kills . | . . . Critical Parts Destroyed . | . . . Critical Strikes . | . . . Melee Attacks . | . . . Impact . | . . . Slashing . | . . . Piercing . | . . . Sneak Attacks . | . . . Combat Hostiles . | . . . Follow-up Attacks . | . . . Damage Inflicted 1711 | 178 149 1384 Guns 1051 | 178 133 740 Cannons 384 | . . 384 Explosions 260 | . . 260 Melee . | . . . Ramming 16 | . 16 . Kinetic 825 | 70 41 714 Thermal 670 | . . 670 Explosive . | . . . Electromagnetic 200 | 108 92 . Impact . | . . . Slashing . | . . . Piercing . | . . . Highest Corruption 1 | . 1 1 Average Corruption 1 | . 1 1 Corruption Purged . | . . . Corruption Blocked . | . . . Effects 17 | . 4 13 Message Errors 3 | . 1 2 Matter Fused 3 | . 1 2 Heat Flow Errors 4 | . . 4 Energy Discharges 1 | . . 1 Data Loss (minor) 4 | . . 4 Data Loss (major) 2 | . 2 . Overload Shots . | . . . Overflow Damage 4 | . 1 3 Projectiles 3 | . . 3 Explosions . | . . . Melee 1 | . 1 . Knockbacks . | . . . Impact . | . . . Kinetic . | . . . Secondary . | . . . Self-Inflicted Damage 8 | . 8 . Shots . | . . . Rammed 1 | . 1 . Targets Rammed 1 | . 1 . Kicked . | . . . Crushed . | . . . Highest Temperature 246 | . 18 246 Average Temperature 39 | . 7 55 Received Heat Transfer 201 | . 39 162 Siege Activations . | . . . Martial Activations . | . . . Shielding Activations . | . . . Robots Disrupted . | . . . Combat Hostiles . | . . . Robots Corrupted 1 | . 1 . Combat Hostiles . | . . . Parts Fried 2 | 1 1 . Impact Corruptions 1 | . 1 . Robots Melted . | . . . Combat Hostiles . | . . . Parts Melted 1 | . . 1 Heat Transferred 868 | . . 868 Parts Sabotaged . | . . . Parts Stolen . | . . . Parts Stripped . | . . . Power Chain Reactions . | . . . Alert | -11 -10 -10 ------- Run | Yrd Mat Sub Maximum Alert Level . | . . . Low Security (%) 100 | 100 100 . Level 1 . | . . . Level 2 . | . . . Level 3 . | . . . Level 4 . | . . . Level 5 . | . . . High Security . | . . . Max Security . | . . . Peak Influence 100 | 10 100 . Initial . | . . . Average 15 | 1 18 . Influence Increases 321 | 30 201 90 Destroy 0b10 Robot/C 120 | . 60 60 Destroy 0b10 Robot/NC 45 | 30 15 . Destroy Leader 22 | . 22 . Successful Hack 38 | . 38 . Select Force Hacks 50 | . 50 . Destroy Structure 1 | . 1 . Lose Combat Pursuer 45 | . 15 30 Influence Decreases 321 | 30 201 90 Time Decay 311 | 30 201 80 Lost Part 10 | . . 10 Squads Dispatched 1 | . 1 . Investigation 1 | . 1 . Extermination . | . . . Reinforcement . | . . . Assault . | . . . Garrison . | . . . Intercept . | . . . Searches Triggered . | . . . Construction Impeded . | . . . Haulers Reinforced . | . . . Active Scanning Responses . | . . . Cargo Convoy Interrupts . | . . . Stealth | -11 -10 -10 --------- Run | Yrd Mat Sub Distress Signals . | . . . Communications Jammed . | . . . Distress Signals . | . . . Times Spotted 19 | . 4 15 Peak Tracking Total 4 | . 2 4 Tactical Retreats 2 | . 1 1 Traps | -11 -10 -10 ------- Run | Yrd Mat Sub Traps Triggered 3 | . 1 2 Indirectly . | . . . Trap Hack Attempts . | . . . Triggered . | . . . Disarmed . | . . . Reprogrammed . | . . . Reused . | . . . Traps Extracted . | . . . Installed . | . . . Triggered . | . . . Most Traps Carried 1 | . . 1 Machines | -11 -10 -10 ---------- Run | Yrd Mat Sub Machines Disabled . | . . . Max in Single Turn . | . . . Machines Repaired . | . . . Machines Dismantled . | . . . Machines Sabotaged 1 | . 1 . Overloaded Fab Kills . | . . . Hacking | -11 -10 -10 --------- Run | Yrd Mat Sub Machines Accessed 9 | . 8 1 Terminals 8 | . 8 . Fabricators . | . . . Repair Stations . | . . . Recycling Units . | . . . Scanalyzers . | . . . Garrison Access . | . . . Total Hacks 25 | . 24 1 Successful 16 | . 15 1 Failed 8 | . 8 . Catastrophic 1 | . 1 . Database Lockouts 1 | . 1 . Manual 14 | . 14 . Terminals 24 | . 24 . Fabricators . | . . . Repair Stations . | . . . Recycling Units . | . . . Scanalyzers . | . . . Garrison Access . | . . . Terminal Hacks 14 | . 13 1 Part Schematic 3 | . 3 . Prototype ID Bank 4 | . 4 . Open Door 1 | . . 1 Terminal Index 1 | . 1 . Alert Level 2 | . 2 . Hauler Manifests 1 | . 1 . Zone Layout 2 | . 2 . Fabricator Hacks . | . . . Repair Station Hacks . | . . . Recycling Unit Hacks . | . . . Scanalyzer . | . . . Garrison Access Hacks . | . . . Unauthorized Hacks 2 | . 2 . Terminals 2 | . 2 . Botnet 1 | . 1 . Sabotage 1 | . 1 . Fabricators . | . . . Repair Stations . | . . . Recycling Units . | . . . Scanalyzers . | . . . Garrison Access . | . . . Data Cores Recovered 1 | . 1 . Used . | . . . Hacking Detections 8 | . 8 . Full Trace Events . | . . . Feedback Events . | . . . Feedback Blocked . | . . . Robot Schematics Acquired . | . . . Robots Built . | . . . Authchips . | . . . Time . | . . . Total Robot Build Rating . | . . . Part Schematics Acquired 3 | . 3 . Parts Built . | . . . Authchips . | . . . Time . | . . . Total Part Build Rating . | . . . Parts Repaired . | . . . Time . | . . . Parts Recycled . | . . . Recycled Matter . | . . . Retrieved Matter . | . . . Retrieved Components . | . . . Parts Scanalyzed . | . . . Part Schematics Acquired . | . . . Parts Damaged . | . . . Bothacking | -11 -10 -10 ------------ Run | Yrd Mat Sub Used RIF Installer . | . . . Robots Hacked . | . . . Non-combat . | . . . Combat . | . . . Robot Hacks Applied . | . . . Relay Couplers Released . | . . . Fabnet Peak Effective % . | . . . Robots Rewired . | . . . Allies Hacked . | . . . Hacks Repelled . | . . . Allies | -11 -10 -10 -------- Run | Yrd Mat Sub Total Allies . | . . . Largest Group . | . . . Highest-Rated Group . | . . . Highest-Rated Ally . | . . . Total Orders . | . . . Ally Attacks . | . . . Total Damage . | . . . Kills . | . . . Allies Corrupted . | . . . Allies Melted . | . . . Intel | -11 -10 -10 ------- Run | Yrd Mat Sub Active Infowar (turns) 2624 | 75 884 1665 Optics 11 | . . 11 Seismic 2613 | 75 884 1654 Robot Analysis Total . | . . . Derelict Logs Recovered 1 | . . 1 Drone Launches . | . . . Drone Recoveries . | . . . Exploration | -11 -10 -10 ------------- Run | Yrd Mat Sub Turns Passed 3172 | 220 884 2068 Spaces Moved 2035 | 105 563 1367 Core 3 | 3 . . Treads 263 | 102 157 4 Legs . | . . . Wheels 1769 | . 406 1363 Hover . | . . . Flight . | . . . Fastest Speed 50 | 50 140 107 Average Speed 132 | 156 145 124 Slowest Speed 320 | 160 160 320 Overloaded Moves . | . . . Propulsion Burnouts . | . . . Robots Hopped . | . . . Potential Cave-ins . | . . . Cave-ins Triggered . | . . . Exploration Rate (%) 59 | 7 94 78 Regions Visited 2 Branch Regions 1 Pre-discovered Areas . | . . . Known Exits Taken . | . . . Unknown Exits Taken 2 | 1 1 . Scrap Searched 3 | . . 3 Spaces Dug 20 | . . 20 Terrain Destroyed 67 | . . 67 Melee . | . . . Projectile 3 | . . 3 AOE 64 | . . 64 Terrain Rammed . | . . . Walls Destroyed . | . . . Machines Disabled . | . . . Actions | -11 -10 -10 --------- Run | Yrd Mat Sub Total 2354 | 135 623 1596 Wait 75 | 2 13 60 Move 2033 | 104 562 1367 Hop . | . . . Pick Up 61 | 9 23 29 Fast Attach 8 | 7 1 . Attach 7 | . . 7 Detach . | . . . Swap 40 | 1 3 36 Drop 42 | 1 13 28 Fire 87 | 11 7 69 Melee . | . . . Ram 1 | . 1 . Kick . | . . . Crush . | . . . Escape Stasis . | . . . Rewire . | . . . Trap . | . . . Miscellaneous . | . . . Route ------- -11/Scrapyard -10/Materials (discovered 6 exits: [*Mat x3] / [*Min x2] / *Sub) -10/Subcaves (discovered 3 exits: *Mat x2 / [*Scr]) History --------- Turn | Location | Event 38 | -11/Scrapyard | Discovered new exit (range 16) 221 | -11/Scrapyard | Entered Materials 309 | -10/Materials | Build established: Mutant 539 | -10/Materials | Discovered new exit (range 12) 683 | -10/Materials | Discovered new exit (range 6) 784 | -10/Materials | Discovered new exit (range 15) 914 | -10/Materials | Discovered new exit (range 5) 1032 | -10/Materials | Discovered new exit (range 12) 1070 | -10/Materials | Central database locked down 1098 | -10/Materials | Discovered new exit (range 8) 1105 | -10/Materials | Entered Subcaves 1106 | -10/Subcaves | Approached by a straggling Scientist 1262 | -10/Subcaves | Scientist uncovered a shortcut to Scraptown 1342 | -10/Subcaves | Identified exit to Materials 1460 | -10/Subcaves | Shifting Twisted Machinery released Sub. Beam Cannon 1482 | -10/Subcaves | Shifting Twisted Machinery released Sub. Monowheel 1515 | -10/Subcaves | Core integrity fell below 50% 1631 | -10/Subcaves | Shifting Twisted Machinery released Sub. Machine Gun 1635 | -10/Subcaves | Shifting Twisted Machinery released Sub. Optics 2108 | -10/Subcaves | Shifting Twisted Machinery released Sub. Monowheel 2291 | -10/Subcaves | A swath of the cavern ceiling suddenly collapsed 2941 | -10/Subcaves | Core integrity fell below 20% 2960 | -10/Subcaves | Discovered exit to Materials (range 9) 3165 | -10/Subcaves | Ambushed by Subdweller buried in earth 3167 | -10/Subcaves | Ambushed by Subdweller buried in earth 3169 | -10/Subcaves | Ambushed by Subdweller buried in earth 3173 | -10/Subcaves | Destroyed by ED-3LG(R) with Subdweller Laser Last Messages --------------- 03029_ Found 38 Matter. 03030_ Acquired 38 matter. 03032_ Searching scrap... 03032_ Found Sub. Shrapnel Launcher. 03032_ Found Mak. Light Armor Plating. 03032_ Found 61 Matter. 03033_ Acquired 35 matter. 03037_ Dropped Sub. Laser. 03037_ Acquired Mak. Light Armor Plating. 03038_ Searching scrap... 03038_ Found Sub. Monowheel. 03038_ Found Barrage Gun. 03038_ Found 60 Matter. 03041_ Dropped Assault Rifle. 03041_ Acquired Barrage Gun. 03043_ Dropped Broken Sub. Monowheel. 03043_ Acquired Sub. Monowheel. 03166_ ED-3LG(R): "THANKSYOU!" 03168_ 3Z-IUJ(R): "ARGHSUB!" 03170_ 5J-ZZJ(R): "NAT20!" Map ----- +----------------------------------------------------+ | ????????????????# #???????????????? | | ???????????????## #???????????????? | | ??????????????## ##??????????????? | | ?????????????## #??????????????? | | ?????????????# #??????????????? | | ?????????????# ## #??????????????? | | ?????????????# #### ##??????????????? | | ????????????## ##??# #???????????????? | | ????????????# ####???# #???????????????? | | ????????????# ##???#### #???????????????? | | ????????????# "##?#""####???????????????? | | ????????????## ""## ""#??????????????????? | | ?????????????# " "#??????????????????? | | ?????????????# """ ##?????????????????? | | ?????????????# " ""#?????????????????? | | ?????????????# ""#?????????????????? | | ????????#????# #####? ??????????????? | | ??????? #????## ##???"" ??????????????? | | ????##? ??????# "#???? " ??????????????? | | ??###" #??????# "##??? "#??????????????? | | ??# ## ##?????## ""#???#"##?????????????? | | ??# " "#??????### ##?##""#?????????????? | | ### ##???????## ""###"" #?????????????? | | ##???### # #??????????????? | | % #???# ##??????????????? | | # ##### ##?#; @##??????????????? | | ####????? ## #??????????????? | | #???????# #??????????????? | | ##????#### R ##??????????????? | | ###??## # R ###???????????????? | | #### ##### #?????????????????? | | ## ##???# R ??????????????????? | | ###?## ???????????????????? | | ### #??### ###???????????????????? | | ??####### #????####??????????????????????? | | ?????????###??????????????????????????????? | | ??????????????????????????????????????????? | | ??????????????????????????????????????????? | | ??????????????????????????????????????????? | | ??????????????????????????????????????????? | | ??????????????????????????????????????????? | | ??????????????????????????????????????????? | | ??????????????????????????????????????????? | | ??????????????????????????????????????????? | | ??????????????????????????????????????????? | | ??????????????????????????????????????????? | | ??????????????????????????????????????????? | | ??????????????????????????????????????????? | | ??????????????????????????????????????????? | | ??????????????????????????????????????????? | +----------------------------------------------------+ Best States ------------- Heat Dissipation 25 Energy Generation 15 Energy Capacity 200 Matter Stores 452 Matter Capacity 500 Sight Range 21 Terrain Scan Density 10 Armor Coverage 150 Evasion (%) 40 Recoil Reduction 2 Item Schematics ----------------- Hcp. Storage Unit | -10/Materials | Hacked Lgt. Armor Plating | -10/Materials | Hacked Lgt. Treads | -10/Materials | Hacked Robot Schematics ------------------ None Fabricated ------------ Nothing Repaired ---------- Nothing Alien Tech Used ----------------- None Achievements -------------- None Challenges ------------ None Game ------ Seed ServoIntegrityLog Manual? 0 Play Time 00:23:59 Cumulative 106.3 hours Start 2025.08.29 @ 14:26:08 End 2025.08.29 @ 14:49:33 Sessions 1 Manual Loads 0 Difficulty Rogue Special Mode None Game No. 80 Rogue 75 Adventurer 5 Explorer 0 Win Type - Total 1 Types 1/0/0/0/0/0/0/0/0/0 Lore% 58 Gallery% 51 Achievement% 43 Wizard Run 0 Options --------- Layout 1 ASCII 0 Keyboard 0 Movement Arrows Keybinds 0 Fullscreen 1 Font 16/SmallcapsGlow Map View 50x40 Zoom Use 0% Tactical HUD 1 Map Filters NONE Filters NONE Steam SD RUN: 31d5abbc-8ba0-499e-9293-8c411d6f446e